[Event "Live Chess"]
[Site "Chess.com"]
[Date "2023.05.21"]
[Round "-"]
[White "Doge_Dandolo"]
[Black "elephantgerrald"]
[Result "1-0"]
[WhiteElo "1890"]
[BlackElo "671"]
[TimeControl "300"]
[EndTime "6:56:59 PDT"]
[Termination "Doge_Dandolo won by checkmate"]

1. Nf3 {[%clk 0:04:53.3]} 1... d5 {[%clk 0:04:58]} 2. c4 {[%clk 0:04:48.9]} 2...
dxc4 {[%clk 0:04:56]} 3. e3 {[%clk 0:04:44.4]} 3... Bg4 {[%clk 0:04:47.9]} 4.
Bxc4 {[%clk 0:04:37]} 4... Bxf3 {[%clk 0:04:45.5]} 5. Qxf3 {[%clk 0:04:33.5]}
5... e6 {[%clk 0:04:43.6]} 6. d4 {[%clk 0:04:31.8]} 6... Nf6 {[%clk 0:04:31.1]}
7. Nc3 {[%clk 0:04:29.2]} 7... c6 {[%clk 0:04:29.8]} 8. O-O {[%clk 0:04:24.6]}
8... g6 {[%clk 0:04:28.3]} 9. e4 {[%clk 0:04:19.7]} 9... Bg7 {[%clk 0:04:22.1]}
10. Rd1 {[%clk 0:04:18.1]} 10... O-O {[%clk 0:04:20.3]} 11. Bg5 {[%clk
0:04:16.7]} 11... Nbd7 {[%clk 0:04:17.4]} 12. e5 {[%clk 0:04:15.1]} 12... Nxe5
{[%clk 0:03:49.8]} 13. dxe5 {[%clk 0:04:12.3]} 13... Qxd1+ {[%clk 0:03:47.6]}
14. Rxd1 {[%clk 0:04:09.5]} 14... b5 {[%clk 0:03:43.9]} 15. exf6 {[%clk
0:04:07.4]} 15... bxc4 {[%clk 0:03:41.8]} 16. fxg7 {[%clk 0:04:05.4]} 16... Rfd8
{[%clk 0:03:36.7]} 17. Rxd8+ {[%clk 0:03:56.9]} 17... Rxd8 {[%clk 0:03:34.5]}
18. Bxd8 {[%clk 0:03:56.5]} 18... Kxg7 {[%clk 0:03:32.2]} 19. Bf6+ {[%clk
0:03:53.1]} 19... Kh6 {[%clk 0:03:30.3]} 20. Qf4+ {[%clk 0:03:51.4]} 20... g5
{[%clk 0:03:28.9]} 21. Qxg5# {[%clk 0:03:50.2]} 1-0

[Event "Live Chess"]
[Site "Chess.com"]
[Date "2023.05.21"]
[Round "-"]
[White "GEMdzq"]
[Black "kevinmilleruk"]
[Result "1-0"]
[WhiteElo "2230"]
[BlackElo "1149"]
[TimeControl "300"]
[EndTime "6:57:24 PDT"]
[Termination "GEMdzq won by resignation"]

1. e4 {[%clk 0:04:58.3]} 1... e5 {[%clk 0:04:59.2]} 2. d4 {[%clk 0:04:56.2]}
2... exd4 {[%clk 0:04:57.3]} 3. c3 {[%clk 0:04:55.9]} 3... dxc3 {[%clk
0:04:55.8]} 4. Bc4 {[%clk 0:04:54.8]} 4... Qe7 {[%clk 0:04:50.1]} 5. Nxc3 {[%clk
0:04:38.5]} 5... Nc6 {[%clk 0:04:46.3]} 6. Nf3 {[%clk 0:04:37.2]} 6... Nf6
{[%clk 0:04:42.3]} 7. O-O {[%clk 0:04:36]} 7... d6 {[%clk 0:04:37.6]} 8. Nd5
{[%clk 0:04:24.4]} 8... Nxd5 {[%clk 0:04:35.8]} 9. exd5 {[%clk 0:04:24.3]} 9...
Ne5 {[%clk 0:04:33]} 10. Nxe5 {[%clk 0:04:19.6]} 10... Qxe5 {[%clk 0:04:30.7]}
11. Re1 {[%clk 0:04:18.1]} 11... Qxe1+ {[%clk 0:04:25.5]} 12. Qxe1+ {[%clk
0:04:18]} 1-0

[Event "Live Chess"]
[Site "Chess.com"]
[Date "2023.05.21"]
[Round "-"]
[White "Cimon"]
[Black "lateforthesky"]
[Result "0-1"]
[WhiteElo "1840"]
[BlackElo "2111"]
[TimeControl "300"]
[EndTime "6:57:28 PDT"]
[Termination "lateforthesky won by resignation"]

1. Nf3 {[%clk 0:04:58.3]} 1... Nf6 {[%clk 0:04:58.4]} 2. d4 {[%clk 0:04:56.5]}
2... g6 {[%clk 0:04:55.7]} 3. Bf4 {[%clk 0:04:53.9]} 3... Bg7 {[%clk 0:04:54.5]}
4. Nc3 {[%clk 0:04:52.1]} 4... d5 {[%clk 0:04:53.1]} 5. Qd2 {[%clk 0:04:49.3]}
5... O-O {[%clk 0:04:51.6]} 6. h3 {[%clk 0:04:42]} 6... c5 {[%clk 0:04:50.7]} 7.
e3 {[%clk 0:04:40.6]} 7... cxd4 {[%clk 0:04:48.7]} 8. exd4 {[%clk 0:04:39.3]}
8... Ne4 {[%clk 0:04:46.7]} 9. Nxe4 {[%clk 0:04:35.5]} 9... dxe4 {[%clk
0:04:45.4]} 10. Ne5 {[%clk 0:04:33.3]} 10... Nc6 {[%clk 0:04:29.1]} 11. Nxc6
{[%clk 0:04:31.2]} 11... bxc6 {[%clk 0:04:27.7]} 12. c3 {[%clk 0:04:26.1]} 12...
Be6 {[%clk 0:04:20.8]} 13. b3 {[%clk 0:04:19.5]} 13... a5 {[%clk 0:04:17.6]} 14.
Be2 {[%clk 0:04:13]} 14... a4 {[%clk 0:04:16.6]} 15. b4 {[%clk 0:04:04.7]} 15...
f6 {[%clk 0:03:59.6]} 16. O-O {[%clk 0:03:57.3]} 16... Bf7 {[%clk 0:03:57.2]}
17. Be3 {[%clk 0:03:47.1]} 17... e5 {[%clk 0:03:50]} 18. Rfd1 {[%clk 0:03:42.8]}
18... f5 {[%clk 0:03:41.3]} 19. f4 {[%clk 0:03:35.9]} 19... exd4 {[%clk
0:03:35.3]} 20. Bxd4 {[%clk 0:03:32.8]} 20... Bxd4+ {[%clk 0:03:33.4]} 21. Qxd4
{[%clk 0:03:30.6]} 21... Qxd4+ {[%clk 0:03:25.4]} 22. Rxd4 {[%clk 0:03:28.2]}
22... Rfd8 {[%clk 0:03:24.4]} 23. Rxd8+ {[%clk 0:03:11.7]} 23... Rxd8 {[%clk
0:03:22.1]} 24. Rd1 {[%clk 0:03:10.3]} 24... Rxd1+ {[%clk 0:03:14.7]} 25. Bxd1
{[%clk 0:03:09.1]} 25... a3 {[%clk 0:03:13.7]} 26. Kf2 {[%clk 0:02:14.8]} 26...
Bxa2 {[%clk 0:03:11.6]} 27. Bc2 {[%clk 0:02:09.3]} 27... Bc4 {[%clk 0:03:07]}
0-1

[Event "Live Chess"]
[Site "Chess.com"]
[Date "2023.05.21"]
[Round "-"]
[White "Ian-Morley"]
[Black "CheckThis4"]
[Result "0-1"]
[WhiteElo "1087"]
[BlackElo "2524"]
[TimeControl "300"]
[EndTime "6:57:33 PDT"]
[Termination "CheckThis4 won by resignation"]

1. b3 {[%clk 0:04:52.9]} 1... d5 {[%clk 0:04:58.7]} 2. Bb2 {[%clk 0:04:51.7]}
2... Nc6 {[%clk 0:04:56.8]} 3. d4 {[%clk 0:04:51.1]} 3... Bf5 {[%clk 0:04:54.8]}
4. e3 {[%clk 0:04:49.6]} 4... e6 {[%clk 0:04:53.4]} 5. Bb5 {[%clk 0:04:48.3]}
5... Ne7 {[%clk 0:04:51.4]} 6. Bxc6+ {[%clk 0:04:47.5]} 6... Nxc6 {[%clk
0:04:50]} 7. Nf3 {[%clk 0:04:47]} 7... Bd6 {[%clk 0:04:48.9]} 8. Ne5 {[%clk
0:04:45.9]} 8... Bxe5 {[%clk 0:04:41.9]} 9. dxe5 {[%clk 0:04:44.9]} 9... Qg5
{[%clk 0:04:39.2]} 10. O-O {[%clk 0:04:43.2]} 10... Be4 {[%clk 0:04:32.8]} 11.
f3 {[%clk 0:04:27.8]} 11... Qxe3+ {[%clk 0:04:30.3]} 12. Kh1 {[%clk 0:04:23.2]}
12... Bg6 {[%clk 0:04:29.1]} 13. Qe1 {[%clk 0:04:20.8]} 13... Qf4 {[%clk
0:04:19.1]} 14. Bc1 {[%clk 0:04:17.1]} 14... Qxe5 {[%clk 0:04:14.5]} 15. Qxe5
{[%clk 0:04:15.4]} 15... Nxe5 {[%clk 0:04:14.4]} 16. Nd2 {[%clk 0:04:14.1]}
16... Bxc2 {[%clk 0:04:12.1]} 17. Bb2 {[%clk 0:04:12.7]} 17... f6 {[%clk
0:04:10.1]} 18. Bxe5 {[%clk 0:04:11.4]} 18... fxe5 {[%clk 0:04:09.2]} 19. Rfe1
{[%clk 0:04:09.5]} 19... Kd7 {[%clk 0:04:01.9]} 20. Rxe5 {[%clk 0:04:07.9]}
20... Rae8 {[%clk 0:03:58]} 21. b4 {[%clk 0:04:01.6]} 21... Rhf8 {[%clk
0:03:56]} 22. Nb3 {[%clk 0:04:00.1]} 22... Bxb3 {[%clk 0:03:54.3]} 23. axb3
{[%clk 0:03:59.3]} 23... a6 {[%clk 0:03:53.8]} 24. b5 {[%clk 0:03:58.3]} 24...
axb5 {[%clk 0:03:52.8]} 25. Ra7 {[%clk 0:03:57.4]} 25... Kc6 {[%clk 0:03:50.2]}
26. b4 {[%clk 0:03:54.3]} 26... Rf5 {[%clk 0:03:45.3]} 27. Re1 {[%clk
0:02:48.6]} 27... d4 {[%clk 0:03:39.2]} 28. Rc1+ {[%clk 0:02:46]} 28... Kb6
{[%clk 0:03:34.9]} 29. Raa1 {[%clk 0:02:42.7]} 29... c6 {[%clk 0:03:32.8]} 30.
Re1 {[%clk 0:02:30.5]} 30... d3 {[%clk 0:03:29.9]} 31. Rad1 {[%clk 0:02:29.2]}
31... Rd5 {[%clk 0:03:28.6]} 32. Re3 {[%clk 0:02:24.4]} 32... Red8 {[%clk
0:03:23.8]} 33. Rxe6 {[%clk 0:02:07.8]} 33... Rd4 {[%clk 0:03:22.9]} 34. Re4
{[%clk 0:02:01.9]} 34... d2 {[%clk 0:03:14.3]} 35. Kg1 {[%clk 0:01:57.1]} 35...
Rxe4 {[%clk 0:03:01.9]} 36. fxe4 {[%clk 0:01:56]} 36... Rd4 {[%clk 0:03:00.9]}
37. Kf2 {[%clk 0:01:54.2]} 37... Rxe4 {[%clk 0:02:59.8]} 38. Rxd2 {[%clk
0:01:52.9]} 38... Rxb4 {[%clk 0:02:58.8]} 39. Rd7 {[%clk 0:01:51.7]} 39... Rg4
{[%clk 0:02:57.2]} 40. h3 {[%clk 0:01:50.3]} 40... Rg6 {[%clk 0:02:56.2]} 41.
Kf3 {[%clk 0:01:48.3]} 41... b4 {[%clk 0:02:55.2]} 42. g4 {[%clk 0:01:45]} 42...
c5 {[%clk 0:02:51.9]} 43. Kf4 {[%clk 0:01:41.4]} 43... b3 {[%clk 0:02:50.9]} 44.
Rd2 {[%clk 0:01:39.9]} 44... c4 {[%clk 0:02:49.6]} 45. Rb2 {[%clk 0:01:38.9]}
45... Kc5 {[%clk 0:02:47.7]} 46. h4 {[%clk 0:01:37]} 46... Kb4 {[%clk
0:02:46.7]} 47. h5 {[%clk 0:01:35.4]} 47... Rf6+ {[%clk 0:02:45.9]} 48. Ke5
{[%clk 0:01:34.3]} 48... c3 {[%clk 0:02:45.1]} 0-1

[Event "Live Chess"]
[Site "Chess.com"]
[Date "2023.05.21"]
[Round "-"]
[White "domrobson"]
[Black "viktorskliarov"]
[Result "0-1"]
[WhiteElo "1766"]
[BlackElo "2651"]
[TimeControl "300"]
[EndTime "6:57:35 PDT"]
[Termination "viktorskliarov won by resignation"]

1. d4 {[%clk 0:04:59.1]} 1... Nf6 {[%clk 0:04:57.7]} 2. c4 {[%clk 0:04:58.1]}
2... e6 {[%clk 0:04:54.7]} 3. Nf3 {[%clk 0:04:57.4]} 3... c5 {[%clk 0:04:52.8]}
4. d5 {[%clk 0:04:54.9]} 4... exd5 {[%clk 0:04:52.4]} 5. cxd5 {[%clk 0:04:53.5]}
5... Bd6 {[%clk 0:04:51.6]} 6. Nc3 {[%clk 0:04:52.5]} 6... O-O {[%clk
0:04:48.2]} 7. e4 {[%clk 0:04:52]} 7... Re8 {[%clk 0:04:46.8]} 8. Bd3 {[%clk
0:04:48]} 8... b5 {[%clk 0:04:45.3]} 9. Nxb5 {[%clk 0:04:42]} 9... Nxe4 {[%clk
0:04:32.6]} 10. O-O {[%clk 0:04:38.9]} 10... a6 {[%clk 0:04:26.2]} 11. Bxe4
{[%clk 0:04:36.5]} 11... axb5 {[%clk 0:04:23.4]} 12. Qc2 {[%clk 0:04:33.9]}
12... h6 {[%clk 0:04:15.7]} 13. Be3 {[%clk 0:04:27.4]} 13... Na6 {[%clk
0:04:11.8]} 14. a3 {[%clk 0:04:24.8]} 14... Bb7 {[%clk 0:03:53.6]} 15. Rfe1
{[%clk 0:04:23.3]} 15... Qf6 {[%clk 0:03:50.7]} 16. Re2 {[%clk 0:04:13.1]} 16...
Nc7 {[%clk 0:03:48.4]} 17. Rd1 {[%clk 0:04:08]} 17... Re7 {[%clk 0:03:39.6]} 18.
Bxc5 {[%clk 0:04:03.5]} 18... Bxc5 {[%clk 0:03:24.4]} 19. Qxc5 {[%clk
0:03:59.5]} 19... d6 {[%clk 0:03:16.6]} 20. Qe3 {[%clk 0:03:44.4]} 20... Rae8
{[%clk 0:02:37.3]} 21. Qb6 {[%clk 0:03:22.8]} 21... Bxd5 {[%clk 0:02:25.2]} 22.
Bxd5 {[%clk 0:03:10.9]} 22... Nxd5 {[%clk 0:02:14.4]} 23. Rxe7 {[%clk
0:03:05.7]} 23... Nxb6 {[%clk 0:02:13]} 24. Rxe8+ {[%clk 0:03:04.7]} 24... Kh7
{[%clk 0:02:12.6]} 25. Re2 {[%clk 0:03:00]} 25... Nc4 {[%clk 0:02:04.8]} 26. Nd4
{[%clk 0:02:46]} 26... Qg5 {[%clk 0:01:58.8]} 27. h3 {[%clk 0:02:29.6]} 27...
Qd5 {[%clk 0:01:55.9]} 28. Kf1 {[%clk 0:02:09.7]} 28... Ne5 {[%clk 0:01:41.5]}
29. Red2 {[%clk 0:02:03.6]} 29... Qc4+ {[%clk 0:01:29.5]} 30. Kg1 {[%clk
0:02:01.9]} 30... b4 {[%clk 0:01:22.1]} 31. axb4 {[%clk 0:01:59.4]} 31... Qxb4
{[%clk 0:01:21.2]} 32. b3 {[%clk 0:01:52.8]} 32... h5 {[%clk 0:01:18.6]} 33. Kf1
{[%clk 0:01:45.3]} 33... g6 {[%clk 0:01:16]} 34. Kg1 {[%clk 0:01:44.7]} 34...
Qb6 {[%clk 0:01:14.1]} 35. Nf3 {[%clk 0:01:38.2]} 35... Nxf3+ {[%clk 0:01:12.4]}
36. gxf3 {[%clk 0:01:36.5]} 36... Qxb3 {[%clk 0:01:11.5]} 37. Rxd6 {[%clk
0:01:35.2]} 37... Qxf3 {[%clk 0:01:10.1]} 38. R6d3 {[%clk 0:01:34]} 38... Qf5
{[%clk 0:01:08.7]} 39. Kg2 {[%clk 0:01:28]} 39... Kg7 {[%clk 0:01:07.8]} 40.
R1d2 {[%clk 0:01:26.8]} 40... h4 {[%clk 0:01:06.9]} 41. Kf1 {[%clk 0:01:25.9]}
41... Qg5 {[%clk 0:01:06]} 42. Ke2 {[%clk 0:01:22.7]} 42... Qe5+ {[%clk
0:01:04.9]} 43. Kf1 {[%clk 0:01:21.3]} 43... Qe6 {[%clk 0:01:04.3]} 44. Kg2
{[%clk 0:01:20.4]} 44... g5 {[%clk 0:01:03.7]} 45. Kf1 {[%clk 0:01:19.5]} 45...
f6 {[%clk 0:01:02.1]} 46. Kg2 {[%clk 0:01:18.6]} 46... Qe4+ {[%clk 0:01:01]} 47.
Kf1 {[%clk 0:01:17.6]} 47... Qh1+ {[%clk 0:00:59.6]} 48. Ke2 {[%clk 0:01:16.6]}
48... Kg6 {[%clk 0:00:59]} 49. Rd1 {[%clk 0:01:12.2]} 49... Qg2 {[%clk 0:00:57]}
50. R1d2 {[%clk 0:01:11]} 50... g4 {[%clk 0:00:54.9]} 51. hxg4 {[%clk
0:01:09.9]} 51... h3 {[%clk 0:00:54.2]} 52. Rg3 {[%clk 0:01:06.2]} 52... Qe4+
{[%clk 0:00:53]} 53. Re3 {[%clk 0:01:02]} 53... Qxg4+ {[%clk 0:00:46.4]} 54. f3
{[%clk 0:00:54.9]} 54... Qg1 {[%clk 0:00:39.5]} 55. Kd3 {[%clk 0:00:51.8]} 55...
h2 {[%clk 0:00:38.1]} 0-1

[Event "Live Chess"]
[Site "Chess.com"]
[Date "2023.05.21"]
[Round "-"]
[White "Duke_of_Bebington"]
[Black "DoYouLikeCurry"]
[Result "1-0"]
[WhiteElo "1545"]
[BlackElo "1430"]
[TimeControl "300"]
[EndTime "6:57:39 PDT"]
[Termination "Duke_of_Bebington won by resignation"]

1. e4 {[%clk 0:04:55.6]} 1... c6 {[%clk 0:04:59]} 2. d4 {[%clk 0:04:53.9]} 2...
d5 {[%clk 0:04:58.6]} 3. e5 {[%clk 0:04:53.2]} 3... Bf5 {[%clk 0:04:56.5]} 4. g4
{[%clk 0:04:52.3]} 4... Be4 {[%clk 0:04:52.3]} 5. f3 {[%clk 0:04:50.5]} 5... Bg6
{[%clk 0:04:51.5]} 6. h4 {[%clk 0:04:50.1]} 6... h5 {[%clk 0:04:49.9]} 7. g5
{[%clk 0:04:46]} 7... e6 {[%clk 0:04:46.1]} 8. Bd3 {[%clk 0:04:43.5]} 8... Bxd3
{[%clk 0:04:43.8]} 9. Qxd3 {[%clk 0:04:43.4]} 9... Qb6 {[%clk 0:04:40]} 10. g6
{[%clk 0:04:41]} 10... fxg6 {[%clk 0:04:34.9]} 11. Qxg6+ {[%clk 0:04:38.9]}
11... Kd7 {[%clk 0:04:27.1]} 12. Nh3 {[%clk 0:04:37.7]} 12... c5 {[%clk
0:04:23.1]} 13. c3 {[%clk 0:04:31.2]} 13... cxd4 {[%clk 0:04:20.5]} 14. cxd4
{[%clk 0:04:22.9]} 14... Qxd4 {[%clk 0:04:17.8]} 15. Qf7+ {[%clk 0:04:18.1]}
15... Kc6 {[%clk 0:04:10.6]} 16. Qxf8 {[%clk 0:04:13.1]} 16... Qxe5+ {[%clk
0:04:09.2]} 17. Kf2 {[%clk 0:04:06.5]} 17... Qd4+ {[%clk 0:04:04.6]} 18. Be3
{[%clk 0:04:03.7]} 18... Qxh4+ {[%clk 0:04:03]} 19. Kg2 {[%clk 0:03:57]} 19...
Qf6 {[%clk 0:03:56.9]} 20. Qc5+ {[%clk 0:03:48.7]} 20... Kd7 {[%clk 0:03:52.8]}
21. Nc3 {[%clk 0:03:47]} 21... Nc6 {[%clk 0:03:47]} 22. Bg5 {[%clk 0:03:39.8]}
22... Qg6 {[%clk 0:03:39.4]} 23. Rac1 {[%clk 0:03:36.4]} 23... Nh6 {[%clk
0:03:28.9]} 24. Rhd1 {[%clk 0:03:30.6]} 24... Nf7 {[%clk 0:03:27.8]} 25. Ne4
{[%clk 0:03:28.1]} 25... Nxg5 {[%clk 0:03:21]} 26. Qd6+ {[%clk 0:03:18.8]} 26...
Kc8 {[%clk 0:03:14.3]} 27. Nexg5 {[%clk 0:03:15.4]} 27... Rd8 {[%clk 0:03:07.3]}
28. Qxe6+ {[%clk 0:03:09.1]} 28... Qxe6 {[%clk 0:03:06.2]} 29. Nxe6 {[%clk
0:03:08.1]} 29... Rg8 {[%clk 0:03:02.5]} 30. Rxd5 {[%clk 0:03:03.2]} 1-0

[Event "Live Chess"]
[Site "Chess.com"]
[Date "2023.05.21"]
[Round "-"]
[White "Olisingapore"]
[Black "Alfiedog12"]
[Result "1-0"]
[WhiteElo "1785"]
[BlackElo "891"]
[TimeControl "300"]
[EndTime "6:57:40 PDT"]
[Termination "Olisingapore won by resignation"]

1. d4 {[%clk 0:04:58.1]} 1... d5 {[%clk 0:04:58.3]} 2. Nf3 {[%clk 0:04:57.3]}
2... c6 {[%clk 0:04:57.3]} 3. g3 {[%clk 0:04:55.5]} 3... Bf5 {[%clk 0:04:56.4]}
4. Bg2 {[%clk 0:04:55.2]} 4... Nf6 {[%clk 0:04:54.3]} 5. c4 {[%clk 0:04:50.1]}
5... e6 {[%clk 0:04:52.2]} 6. Qb3 {[%clk 0:04:49]} 6... Qb6 {[%clk 0:04:50]} 7.
c5 {[%clk 0:04:48.1]} 7... Qxb3 {[%clk 0:04:48.7]} 8. axb3 {[%clk 0:04:48]} 8...
a5 {[%clk 0:04:47.3]} 9. Nc3 {[%clk 0:04:46.2]} 9... Nbd7 {[%clk 0:04:40]} 10.
O-O {[%clk 0:04:45.7]} 10... Be7 {[%clk 0:04:36]} 11. b4 {[%clk 0:04:34.4]}
11... O-O {[%clk 0:04:33.3]} 12. bxa5 {[%clk 0:04:31]} 12... Ra6 {[%clk
0:04:26.2]} 13. b4 {[%clk 0:04:26.5]} 13... Rfa8 {[%clk 0:04:20.4]} 14. Ra3
{[%clk 0:04:23.6]} 14... b6 {[%clk 0:04:19]} 15. Bf4 {[%clk 0:04:18.2]} 15...
bxc5 {[%clk 0:04:12.6]} 16. dxc5 {[%clk 0:04:14.3]} 16... Bd8 {[%clk 0:03:53.5]}
17. Rfa1 {[%clk 0:04:09]} 17... R8a7 {[%clk 0:03:52.4]} 18. Nd4 {[%clk
0:04:04.7]} 18... Bc7 {[%clk 0:03:48.8]} 19. Bxc7 {[%clk 0:04:01.1]} 19... Rxc7
{[%clk 0:03:47.1]} 20. Bf1 {[%clk 0:03:58.3]} 20... Ne4 {[%clk 0:03:29.3]} 21.
Nxe4 {[%clk 0:03:54.3]} 21... Bxe4 {[%clk 0:03:27.7]} 22. e3 {[%clk 0:03:54]}
22... Rb7 {[%clk 0:03:14]} 23. Bxa6 {[%clk 0:03:51.5]} 23... Rxb4 {[%clk
0:03:10.3]} 24. Nxc6 {[%clk 0:03:43.7]} 24... Rb2 {[%clk 0:03:04.9]} 25. Bd3
{[%clk 0:03:34.5]} 25... Nxc5 {[%clk 0:03:02.5]} 26. Bxe4 {[%clk 0:03:32.7]}
26... Nxe4 {[%clk 0:03:00.9]} 27. a6 {[%clk 0:03:32]} 27... Nxf2 {[%clk
0:02:41]} 28. R3a2 {[%clk 0:03:14.7]} 28... Nh3+ {[%clk 0:02:38.5]} 29. Kf1
{[%clk 0:03:12.7]} 29... Rb6 {[%clk 0:02:09.9]} 30. a7 {[%clk 0:03:10.6]} 30...
Rxc6 {[%clk 0:02:09]} 31. a8=Q+ {[%clk 0:03:09.7]} 1-0

[Event "Live Chess"]
[Site "Chess.com"]
[Date "2023.05.21"]
[Round "-"]
[White "AbilifyXL"]
[Black "jimwad"]
[Result "1-0"]
[WhiteElo "1966"]
[BlackElo "1220"]
[TimeControl "300"]
[EndTime "6:57:53 PDT"]
[Termination "AbilifyXL won by resignation"]

1. d4 {[%clk 0:04:58.8]} 1... d5 {[%clk 0:04:58.5]} 2. c4 {[%clk 0:04:58.7]}
2... c6 {[%clk 0:04:57]} 3. Nc3 {[%clk 0:04:58.6]} 3... Nf6 {[%clk 0:04:56]} 4.
cxd5 {[%clk 0:04:58.5]} 4... Nxd5 {[%clk 0:04:54.5]} 5. Nf3 {[%clk 0:04:58.4]}
5... Nxc3 {[%clk 0:04:52.2]} 6. bxc3 {[%clk 0:04:57.5]} 6... Bg4 {[%clk
0:04:50.1]} 7. e4 {[%clk 0:04:56.3]} 7... e6 {[%clk 0:04:48.8]} 8. Be2 {[%clk
0:04:55.4]} 8... Be7 {[%clk 0:04:44.3]} 9. h3 {[%clk 0:04:54.5]} 9... Bh5 {[%clk
0:04:42.6]} 10. Bf4 {[%clk 0:04:53.5]} 10... Nd7 {[%clk 0:04:40.5]} 11. O-O
{[%clk 0:04:52.7]} 11... O-O {[%clk 0:04:38.9]} 12. Qc2 {[%clk 0:04:50.6]} 12...
Bg6 {[%clk 0:04:36.2]} 13. Bd3 {[%clk 0:04:49.7]} 13... b6 {[%clk 0:04:31.4]}
14. Rfe1 {[%clk 0:04:48.6]} 14... c5 {[%clk 0:04:29.5]} 15. d5 {[%clk
0:04:46.4]} 15... exd5 {[%clk 0:04:27.9]} 16. exd5 {[%clk 0:04:46.3]} 16... Bxd3
{[%clk 0:04:26.3]} 17. Qxd3 {[%clk 0:04:46.2]} 17... Nf6 {[%clk 0:04:24.2]} 18.
c4 {[%clk 0:04:44.8]} 18... Bd6 {[%clk 0:04:20.4]} 19. Bg5 {[%clk 0:04:43.2]}
19... Be7 {[%clk 0:04:04.8]} 20. Rad1 {[%clk 0:04:37.8]} 20... Qd6 {[%clk
0:04:02.7]} 21. Qd2 {[%clk 0:04:14.5]} 21... Rae8 {[%clk 0:03:58.7]} 22. Bf4
{[%clk 0:04:11.9]} 22... Qd7 {[%clk 0:03:53]} 23. Ne5 {[%clk 0:04:10.6]} 23...
Qa4 {[%clk 0:03:42.9]} 24. Nc6 {[%clk 0:04:03]} 24... Qxc4 {[%clk 0:03:33.9]}
25. Nxe7+ {[%clk 0:03:59.1]} 25... Kh8 {[%clk 0:03:23.2]} 26. d6 {[%clk
0:03:57.1]} 26... Rd8 {[%clk 0:03:15.9]} 27. Nc6 {[%clk 0:03:49.7]} 27... Rd7
{[%clk 0:03:09.6]} 28. Ne5 {[%clk 0:03:48.2]} 28... Qb5 {[%clk 0:03:05.5]} 29.
Nxd7 {[%clk 0:03:46.9]} 29... Nxd7 {[%clk 0:03:04]} 30. Re7 {[%clk 0:03:43.6]}
30... Qc6 {[%clk 0:02:59.2]} 31. Qd5 {[%clk 0:03:40.9]} 31... Qxd5 {[%clk
0:02:57.3]} 32. Rxd5 {[%clk 0:03:39.5]} 32... Kg8 {[%clk 0:02:43.4]} 33. Rxd7
{[%clk 0:03:38.2]} 1-0

[Event "Live Chess"]
[Site "Chess.com"]
[Date "2023.05.21"]
[Round "-"]
[White "garyjc"]
[Black "onemoretime1975"]
[Result "0-1"]
[WhiteElo "1035"]
[BlackElo "1855"]
[TimeControl "300"]
[EndTime "6:57:54 PDT"]
[Termination "onemoretime1975 won by resignation"]

1. e4 {[%clk 0:04:57.8]} 1... e6 {[%clk 0:04:58.3]} 2. d4 {[%clk 0:04:56.2]}
2... d5 {[%clk 0:04:56.9]} 3. Nc3 {[%clk 0:04:49.1]} 3... Nf6 {[%clk 0:04:54.9]}
4. f3 {[%clk 0:04:44.6]} 4... Bb4 {[%clk 0:04:49.9]} 5. a3 {[%clk 0:04:41.8]}
5... Bxc3+ {[%clk 0:04:47.1]} 6. bxc3 {[%clk 0:04:40.5]} 6... dxe4 {[%clk
0:04:46]} 7. fxe4 {[%clk 0:04:30.2]} 7... Nxe4 {[%clk 0:04:44.5]} 8. Bb2 {[%clk
0:04:21.8]} 8... Qh4+ {[%clk 0:04:41.6]} 9. g3 {[%clk 0:04:18.6]} 9... Nxg3
{[%clk 0:04:39.7]} 10. hxg3 {[%clk 0:03:40.3]} 10... Qxh1 {[%clk 0:04:35.5]} 11.
Nf3 {[%clk 0:03:33.6]} 11... O-O {[%clk 0:04:31]} 12. Qd2 {[%clk 0:03:26.5]}
12... Qxf3 {[%clk 0:04:26.6]} 13. Be2 {[%clk 0:03:19]} 13... Qxg3+ {[%clk
0:04:23.5]} 14. Kd1 {[%clk 0:03:17.6]} 14... Qg1+ {[%clk 0:04:19.1]} 0-1

[Event "Live Chess"]
[Site "Chess.com"]
[Date "2023.05.21"]
[Round "-"]
[White "Ferrarifan27"]
[Black "grillage"]
[Result "0-1"]
[WhiteElo "2057"]
[BlackElo "1782"]
[TimeControl "300"]
[EndTime "6:57:55 PDT"]
[Termination "grillage won on time"]

1. e4 {[%clk 0:04:58.8]} 1... d5 {[%clk 0:04:58.6]} 2. exd5 {[%clk 0:04:57.2]}
2... Qxd5 {[%clk 0:04:55.6]} 3. Nc3 {[%clk 0:04:54.6]} 3... Qd8 {[%clk
0:04:54.2]} 4. d4 {[%clk 0:04:53.6]} 4... Nf6 {[%clk 0:04:52.6]} 5. Nf3 {[%clk
0:04:52.7]} 5... Bg4 {[%clk 0:04:50.9]} 6. Be2 {[%clk 0:04:45.3]} 6... c6 {[%clk
0:04:49]} 7. O-O {[%clk 0:04:43]} 7... e6 {[%clk 0:04:48.1]} 8. h3 {[%clk
0:04:41.1]} 8... Bxf3 {[%clk 0:04:46.5]} 9. Bxf3 {[%clk 0:04:41]} 9... Nbd7
{[%clk 0:04:45.1]} 10. Re1 {[%clk 0:04:39.2]} 10... Be7 {[%clk 0:04:43.5]} 11.
Bf4 {[%clk 0:04:25]} 11... O-O {[%clk 0:04:41.3]} 12. Qe2 {[%clk 0:04:24]} 12...
Nd5 {[%clk 0:04:39.3]} 13. Bg3 {[%clk 0:04:22.6]} 13... Nxc3 {[%clk 0:04:37.5]}
14. bxc3 {[%clk 0:04:21.2]} 14... Nf6 {[%clk 0:04:37]} 15. Rab1 {[%clk
0:04:17.6]} 15... Qd7 {[%clk 0:04:25.4]} 16. Be5 {[%clk 0:04:04.7]} 16... Nd5
{[%clk 0:04:21.6]} 17. c4 {[%clk 0:04:03]} 17... Nc3 {[%clk 0:04:19.2]} 18. Qe3
{[%clk 0:03:55.9]} 18... Nxb1 {[%clk 0:04:17.2]} 19. Rxb1 {[%clk 0:03:55.8]}
19... Bd6 {[%clk 0:04:06.4]} 20. Bxd6 {[%clk 0:03:48.9]} 20... Qxd6 {[%clk
0:04:05.6]} 21. Rxb7 {[%clk 0:03:48]} 21... Rfd8 {[%clk 0:04:03.6]} 22. c3
{[%clk 0:03:44.8]} 22... Qa3 {[%clk 0:03:49.6]} 23. Qf4 {[%clk 0:03:26.3]} 23...
Rf8 {[%clk 0:03:45.2]} 24. Bxc6 {[%clk 0:03:20]} 24... Qxc3 {[%clk 0:03:36.3]}
25. c5 {[%clk 0:02:59.8]} 25... Rad8 {[%clk 0:03:32.8]} 26. Rxa7 {[%clk
0:02:55]} 26... Rxd4 {[%clk 0:03:29.5]} 27. Qf3 {[%clk 0:02:43.8]} 27... Qxc5
{[%clk 0:03:24.1]} 28. Rc7 {[%clk 0:02:24.6]} 28... Qd6 {[%clk 0:03:22.4]} 29.
Rd7 {[%clk 0:02:18.5]} 29... Qe5 {[%clk 0:03:09.8]} 30. Rb7 {[%clk 0:01:54]}
30... f6 {[%clk 0:02:34.6]} 31. a4 {[%clk 0:01:35.7]} 31... Rfd8 {[%clk
0:02:32.6]} 32. Rb1 {[%clk 0:01:34]} 32... Rd3 {[%clk 0:02:15.7]} 33. Qg4 {[%clk
0:01:11.4]} 33... h5 {[%clk 0:02:04.2]} 34. Qc4 {[%clk 0:00:16.3]} 34... Rd1+
{[%clk 0:01:53.9]} 35. Qf1 {[%clk 0:00:13.8]} 35... Rxf1+ {[%clk 0:01:52]} 36.
Rxf1 {[%clk 0:00:13.7]} 36... Qc5 {[%clk 0:01:48.1]} 37. Bb5 {[%clk 0:00:11.3]}
37... Rd2 {[%clk 0:01:45.9]} 38. g3 {[%clk 0:00:09]} 38... h4 {[%clk 0:01:43]}
39. gxh4 {[%clk 0:00:07]} 39... Qd4 {[%clk 0:01:38.1]} 40. Kg2 {[%clk
0:00:06.1]} 40... Qxh4 {[%clk 0:01:34.9]} 41. a5 {[%clk 0:00:01.6]} 41... Qg5+
{[%clk 0:01:34]} 0-1